bitfinex/quotes_ETHUSD_20251201
["timestamp","ask_amount","ask_price","bid_price","bid_amount"]
[1764555898562,4.07177349,2858.7,2858.6,0.21279276]
[1764555898764,4.52857349,2858.7,2858.6,0.21279276]
[1764555899471,5.80122822,2858.7,2858.6,0.21279276]
[1764555901050,5.83572837,2858.7,2858.6,0.21279276]
[1764555902064,0.80265473,2858.7,2858.6,0.21279276]
[1764555902288,0.223,2858.7,2858.6,0.21279276]
[1764555902486,3.75559368,2858.7,2858.6,0.21279276]
[1764555902783,5.03307364,2858.7,2858.6,0.21279276]
[1764555902975,4.56307364,2858.7,2858.6,0.21279276]
[1764555903680,0.25750015,2858.7,2858.6,0.22379276]
[1764555903877,0.223,2858.8,2858.6,0.22379276]
[1764555904081,0.223,2858.8,2858.6,0.23479276]
[1764555904268,0.223,2858.8,2858.7,0.011]
[1764555904797,0.25750015,2859.1,2858.7,0.022]
[1764555904979,0.03450015,2859.1,2858.9,0.011]
[1764555905180,0.03450015,2859.1,2858.6,0.58611358]
[1764555905181,0.25750015,2859.1,2858.6,0.58611358]
[1764555905380,0.72750015,2859.1,2858.6,0.21279276]
[1764555906666,4.22515178,2859.1,2858.6,0.21279276]
[1764555907691,0.4568,2858.7,2858.6,0.21279276]
[1764555908488,0.03450015,2858.9,2858.6,0.22379276]
[1764555908694,0.03450015,2858.9,2858.6,0.21279276]
[1764555909190,0.03450015,2858.9,2858.8,0.011]
[1764555909387,0.03450015,2859.0,2858.8,0.011]
[1764555909587,0.25750015,2859.1,2859.0,0.011]
[1764555911971,0.223,2859.1,2859.0,0.011]
[1764555913402,0.35067996,2858.8,2858.6,0.21279276]
[1764555913568,0.68310015,2858.7,2858.6,0.21279276]
[1764555913768,0.03450015,2858.7,2858.6,0.21279276]
[1764555913972,0.03450015,2858.9,2858.6,0.21279276]
[1764555914193,1.34941342,2858.9,2858.6,0.21279276]
[1764555914594,0.223,2859.1,2858.8,0.011]
[1764555914768,0.03450015,2859.2,2859.0,0.011]
[1764555915799,3.53199242,2859.2,2858.6,0.21279276]
[1764555916507,3.53199408,2859.2,2858.6,0.22379276]
[1764555916809,0.03450015,2859.2,2858.6,0.22379276]
[1764555917011,0.03450015,2859.2,2858.6,3.72198133]
[1764555917181,0.03450015,2859.2,2859.1,0.011]
[1764555917708,3.53198196,2859.2,2859.1,0.011]
[1764555917890,0.25750015,2859.3,2859.1,0.011]
[1764555918088,0.25750015,2859.3,2859.2,0.011]
[1764555918290,8.17901913,2859.3,2858.6,0.21279276]
[1764555918490,0.4568,2859.0,2858.6,0.21279276]
[1764555918696,0.4568,2859.0,2858.6,0.65656377]
[1764555919012,0.03450015,2859.1,2858.9,0.011]
[1764555919311,0.03450015,2859.2,2858.9,0.011]
[1764555919680,3.49760414,2859.1,2858.9,0.011]
[1764555920012,3.49760414,2859.1,2858.6,0.65656377]
[1764555920509,0.35067996,2858.9,2858.6,0.21279276]
[1764555920687,0.03450015,2859.0,2858.6,0.21279276]
[1764555920879,0.03450015,2859.0,2858.8,0.011]
[1764555922213,4.64764882,2858.9,2858.6,0.21279276]
[1764555922387,0.4568,2858.7,2858.6,0.21279276]
[1764555922778,0.9547,2858.7,2858.6,0.21279276]
[1764555923108,0.50271505,2858.8,2858.6,0.21279276]
[1764555923309,0.9893,2858.7,2858.6,0.21279276]
[1764555923809,4.48739353,2858.7,2858.6,0.21279276]
[1764555926494,4.52189368,2858.7,2858.6,0.21279276]
[1764555926690,4.02399368,2858.7,2858.6,0.21279276]
[1764555927501,4.50059368,2858.7,2858.6,0.21279276]
[1764555927699,3.49760414,2859.1,2858.6,0.22379276]
[1764555927902,1.13152056,2859.0,2858.6,0.21279276]
[1764555928104,0.80367996,2858.7,2858.6,0.21279276]
[1764555928483,1.31478011,2858.7,2858.6,0.21279276]
[1764555929082,7.21847349,2859.0,2858.6,0.22379276]
[1764555929280,0.453,2858.7,2858.6,0.21279276]
[1764555929605,0.48750015,2858.7,2858.6,0.21279276]
[1764555930515,3.98559368,2858.7,2858.6,0.21279276]
[1764555931110,5.25821096,2858.7,2858.6,0.21279276]
[1764555931316,5.60889092,2858.7,2858.6,0.21279276]
[1764555933818,0.35067996,2859.3,2858.6,10.34614722]
[1764555934026,0.25750015,2859.3,2858.9,6.61317668]
[1764555934487,3.75495568,2859.3,2858.6,3.72197054]
[1764555934686,3.75495568,2859.3,2858.7,0.72212748]
[1764555935690,0.25750015,2859.3,2858.7,0.72212748]
[1764555935889,3.75490931,2859.3,2858.7,0.72212748]
[1764555936787,3.75490931,2859.3,2858.7,4.22014563]
[1764555936989,3.75486267,2859.3,2858.7,4.22014563]
[1764555937220,3.75486267,2859.3,2858.8,0.44439384]
[1764555937539,0.03450015,2859.3,2859.2,0.011]
[1764555937685,0.002,2859.4,2859.2,0.011]
[1764555937886,0.002,2859.4,2859.3,0.022]
[1764555938097,0.002,2859.4,2859.3,0.778504]
[1764555938310,0.002,2859.8,2859.5,0.405504]
[1764555938536,0.002,2859.8,2859.6,0.414504]
[1764555938692,0.002,2859.8,2859.6,4.13449658]
[1764555938898,0.002,2859.8,2859.6,4.86909069]
[1764555939815,0.002,2859.8,2859.6,5.22009069]
[1764555940017,0.002,2859.8,2859.6,7.34547129]
[1764555940419,0.002,2859.8,2859.6,7.69647129]
[1764555940607,0.002,2859.8,2859.6,7.34547129]
[1764555941294,0.002,2859.8,2859.6,7.12247129]
[1764555941507,0.002,2859.8,2859.6,7.69647129]
[1764555942204,0.002,2859.8,2859.6,2.4853806]
[1764555942520,0.455,2859.7,2859.2,0.223]
[1764555942690,0.455,2859.7,2858.8,0.44439384]
[1764555942691,0.03450015,2859.6,2858.8,0.44439384]
[1764555942892,0.03450015,2859.6,2858.9,0.223]
[1764555943091,0.03450015,2859.6,2858.9,0.95759411]
[1764555943990,0.03450015,2859.6,2858.9,0.72559411]
[1764555944197,0.51110015,2859.6,2858.8,0.72559411]
[1764555944429,0.35067996,2859.5,2858.7,3.4980757]
[1764555944615,0.03450015,2859.4,2858.8,0.72559411]
[1764555945130,0.03450015,2859.4,2858.6,3.93398956]
[1764555945131,3.53177318,2859.4,2858.6,3.93398956]
[1764555945295,4.00837318,2859.4,2858.7,0.03498093]
[1764555945495,0.51110015,2859.4,2858.7,0.76057504]
[1764555945912,4.00836352,2859.4,2858.7,0.76057504]
[1764555946108,0.51110015,2859.4,2858.7,0.76057504]
[1764555946308,7.98492537,2859.4,2858.6,1.16138687]
[1764555946512,7.95042522,2859.4,2858.6,0.43579276]
[1764555946725,0.35067996,2859.2,2858.6,0.93838687]
[1764555946929,0.35067996,2859.2,2858.7,0.72559411]
[1764555947324,0.82727996,2859.2,2858.7,0.72559411]
[1764555947916,3.97420414,2859.1,2858.6,0.21279276]
[1764555948222,3.97789614,2859.2,2858.6,0.21279276]
[1764555948223,0.48038666,2859.2,2858.6,0.21279276]
[1764555948421,0.4766,2859.1,2858.6,0.21279276]
[1764555949415,3.97432394,2859.1,2858.6,0.21279276]
[1764555949614,7.47204788,2859.1,2858.6,0.21279276]
[1764555949813,0.1801,2859.0,2858.6,0.21279276]
[1764555951241,3.72072394,2859.1,2858.6,0.21279276]
[1764555951535,4.19732394,2859.1,2858.6,0.21279276]
[1764555952005,0.82727996,2859.0,2858.6,0.21279276]
[1764555953108,0.4766,2859.0,2858.6,0.21279276]
[1764555953533,3.72072394,2859.1,2858.6,0.21279276]
[1764555953718,4.20432394,2859.1,2858.6,0.21279276]
[1764555954222,7.70199526,2859.1,2858.6,0.21279276]
[1764555954536,4.20427132,2859.1,2858.6,0.21279276]
[1764555955643,3.72067132,2859.1,2858.6,0.21279276]
[1764555955838,0.002,2859.4,2859.0,0.009]
[1764555956040,0.002,2859.4,2858.6,0.58750712]
[1764555956249,0.002,2859.4,2858.6,0.43579276]
[1764555956250,0.4836,2859.3,2858.6,0.43579276]
[1764555956543,0.03450015,2859.2,2858.6,0.43579276]
[1764555956915,0.51810015,2859.2,2858.6,3.93390921]
[1764555957142,0.51810015,2859.2,2858.7,0.72559411]
[1764555957342,0.03450015,2859.3,2858.7,0.76057504]
[1764555957638,0.03450015,2859.3,2858.7,3.53306708]
[1764555957836,0.002,2859.4,2859.2,0.009]
[1764555958240,0.002,2859.4,2858.9,0.03497848]
[1764555958443,0.002,2859.4,2858.9,0.04397848]
[1764555958622,0.002,2859.4,2859.3,0.009]
[1764555959881,0.456,2859.4,2859.0,0.223]
[1764555960352,0.456,2859.4,2859.0,0.37207849]
[1764555960524,0.456,2859.4,2858.9,0.223]
[1764555960725,0.456,2859.4,2858.9,3.72084269]
[1764555961147,0.002,2859.4,2859.3,0.009]
[1764555961924,0.002,2859.4,2859.3,4.2409536]
[1764555962218,0.002,2859.4,2859.3,4.8694576]
[1764555962424,0.002,2859.4,2859.3,5.70615138]
[1764555963257,0.002,2859.4,2859.3,18.85442748]
[1764555963460,0.002,2859.4,2859.3,19.20542748]
[1764555964723,0.002,2859.4,2859.3,14.61860548]
[1764555965046,25.002,2859.4,2859.3,14.26760548]
[1764555965220,25.002,2859.4,2859.3,14.61860548]
[1764555965427,25.002,2859.4,2859.3,14.26760548]
[1764555966136,25.002,2859.4,2859.3,34.12126248]
[1764555966326,25.002,2859.4,2859.3,34.47226248]
[1764555966865,25.002,2859.4,2859.3,31.30013648]
[1764555967045,25.002,2859.4,2859.3,25.64112848]
[1764555967253,25.002,2859.4,2859.3,16.54194648]
[1764555967465,25.002,2859.4,2859.3,14.61860548]
[1764555968271,25.002,2859.4,2859.3,5.65164738]
[1764555968557,25.002,2859.4,2859.3,14.61860548]
[1764555971265,25.002,2859.4,2859.3,14.39560548]
[1764555971452,25.002,2859.4,2859.3,14.61860548]
[1764555972156,25.002,2859.4,2859.3,5.47415138]
[1764555972475,25.002,2859.4,2859.3,6.04815138]
[1764555972950,25.002,2859.4,2859.3,6.05715138]
[1764555974068,25.002,2859.4,2859.3,5.67762097]
[1764555974241,25.002,2859.4,2859.3,6.05715138]
[1764555975280,25.002,2859.4,2859.3,5.69715138]
[1764555975942,25.002,2859.4,2859.3,6.04815138]
[1764555976348,25.002,2859.4,2859.3,5.69715138]
[1764555977883,25.002,2859.4,2859.3,35.96047048]
[1764555978175,25.002,2859.4,2859.3,36.38051348]
[1764555978350,25.002,2859.4,2859.3,24.73799548]
[1764555978859,25.002,2859.4,2859.3,30.87217548]
[1764555979678,25.002,2859.4,2859.3,29.39197448]
[1764555979885,25.002,2859.4,2859.3,29.50846148]
[1764555980975,25.002,2859.4,2859.3,31.19314348]
[1764555981379,25.002,2859.4,2859.3,29.95184348]
[1764555981877,25.002,2859.4,2859.3,18.46660548]
[1764555982080,25.002,2859.4,2859.3,30.97246348]
[1764555982272,25.002,2859.4,2859.3,24.34558648]
[1764555982973,25.002,2859.4,2859.3,18.10660548]
[1764555983182,25.002,2859.4,2859.3,18.45760548]
[1764555983578,25.002,2859.4,2859.3,9.88715138]
[1764555983778,25.002,2859.4,2859.3,9.67315138]
[1764555983948,25.002,2859.4,2859.3,9.89715138]
[1764555986486,25.002,2859.4,2859.3,33.02554648]
[1764555986789,25.002,2859.4,2859.3,32.01707348]
[1764555987290,25.002,2859.4,2859.3,28.28959848]
[1764555987590,25.002,2859.4,2859.3,27.34403648]
[1764555988296,25.002,2859.4,2859.3,28.87909248]
[1764555988759,20.002,2859.4,2859.3,28.87909248]
[1764555988994,20.002,2859.4,2859.3,25.31390148]
[1764555989285,20.002,2859.4,2859.3,18.46760548]
[1764555989493,20.002,2859.4,2859.3,29.54442448]
[1764555990382,20.002,2859.4,2859.3,33.20192748]
[1764555991395,20.002,2859.4,2859.3,34.22378648]
[1764555992191,20.002,2859.4,2859.3,31.94241648]
[1764555992404,20.002,2859.4,2859.3,26.07001748]
[1764555992592,20.002,2859.4,2859.3,18.45860548]
[1764555992763,20.002,2859.4,2859.3,9.66515138]
[1764555992963,20.002,2859.4,2859.3,9.89715138]
[1764555993569,20.002,2859.4,2859.3,9.53715138]
[1764555994090,20.002,2859.4,2859.3,9.88815138]
[1764555994501,20.002,2859.4,2859.3,9.89715138]
[1764555994709,20.002,2859.4,2859.3,9.67415138]
[1764555994865,20.002,2859.4,2859.3,9.89715138]
[1764555995064,20.002,2859.4,2859.3,9.31415138]
[1764555995265,20.4578,2859.4,2859.3,9.88815138]
[1764555995662,20.94,2859.4,2859.3,0.72659411]
[1764555995898,20.94,2859.4,2859.3,0.001]
[1764555996095,20.94,2859.4,2859.0,0.001]
[1764555996283,0.4558,2859.1,2859.0,0.224]
[1764555996593,0.4558,2859.1,2859.0,0.94959411]
[1764555996795,0.938,2859.1,2859.0,0.001]
[1764555997568,4.43560414,2859.1,2859.0,0.001]
[1764555997881,5.80259297,2859.1,2859.0,0.001]
[1764555999775,5.45191301,2859.1,2859.0,0.001]
[1764556000103,5.80259297,2859.1,2859.0,0.001]
[1764556000396,5.45191301,2859.1,2859.0,0.001]
[1764556002190,5.22891301,2859.1,2859.0,0.001]
[1764556002403,5.45191301,2859.1,2859.0,0.001]
[1764556002774,5.80259297,2859.1,2859.0,0.001]
[1764556003497,9.30019711,2859.1,2858.7,0.001]
[1764556003702,0.6527,2858.8,2858.7,0.001]
[1764556003872,4.15067117,2858.8,2858.7,0.001]
[1764556004071,4.63287117,2858.8,2858.7,0.001]
[1764556004568,0.35067996,2858.2,2857.2,7.72545411]
[1764556004773,0.4558,2858.6,2857.4,0.405504]
[1764556004774,0.223,2858.4,2857.4,0.405504]
[1764556004984,0.223,2858.4,2857.5,0.91614863]
[1764556005301,0.4822,2858.3,2857.5,0.91614863]
[1764556005510,0.4822,2858.3,2857.6,0.405504]
[1764556005670,0.4822,2858.3,2857.7,0.03499317]
[1764556005871,0.1969,2858.8,2857.8,7.40389436]
[1764556006073,0.4822,2858.5,2858.0,0.405504]
[1764556006799,0.4822,2858.5,2858.1,0.351]
[1764556006999,0.4558,2858.2,2858.1,0.405504]
[1764556007182,0.1969,2858.8,2858.0,0.756504]
[1764556007378,0.1969,2858.8,2857.2,6.00745772]
[1764556007379,0.4558,2858.1,2857.2,2.50759203]
[1764556007610,0.4558,2857.3,2856.7,2.50759203]
[1764556007778,0.1866,2856.6,2856.1,3.13449004]
[1764556007981,0.5272,2856.6,2856.2,0.483449]
[1764556008200,0.5272,2856.6,2856.2,0.17]
[1764556008399,1.0094,2856.6,2855.9,0.4629]
[1764556008616,0.1866,2857.0,2856.5,0.483]
[1764556008902,0.1866,2857.0,2856.4,0.351]
[1764556009107,0.4822,2857.2,2856.4,0.351]
[1764556009293,0.4822,2857.2,2856.7,0.405504]
[1764556009679,0.4822,2857.2,2856.6,0.405504]
[1764556010022,0.4822,2857.2,2856.8,1.13109811]
[1764556010220,0.1877,2857.6,2857.0,0.405504]
[1764556010379,0.6699,2857.6,2857.0,0.405504]
[1764556010813,0.4822,2857.5,2856.9,0.405504]
[1764556011910,0.1877,2857.6,2856.9,0.405504]
[1764556012084,0.4822,2858.0,2857.3,0.405504]
[1764556012290,0.4822,2857.9,2857.3,0.405504]
[1764556013098,0.4859,2857.4,2857.1,4.63113218]
[1764556013297,0.4859,2857.4,2857.2,0.46311322]
[1764556013500,0.4618,2857.7,2857.3,0.405504]
[1764556013707,0.1969,2858.2,2857.7,0.405504]
[1764556014116,0.6587,2858.2,2857.9,0.405504]
[1764556014493,0.4859,2858.0,2857.8,0.405504]
[1764556014696,0.4618,2858.1,2857.6,0.72559411]
[1764556014697,0.3017,2857.9,2857.6,0.72559411]
[1764556015001,0.4859,2857.7,2857.5,0.405504]
[1764556015185,0.4859,2857.7,2857.5,0.89087976]
[1764556015582,0.7635,2857.6,2857.4,0.223]
[1764556015788,0.4618,2858.0,2857.1,0.575504]
[1764556016216,0.4618,2858.0,2857.3,0.405504]
[1764556016424,0.03450015,2857.9,2857.3,0.405504]
[1764556016609,0.4618,2858.0,2857.3,0.405504]
[1764556016799,0.4618,2857.9,2857.3,0.405504]
[1764556017200,0.49630015,2857.9,2857.3,0.405504]
[1764556017614,0.4618,2857.9,2857.4,0.03499685]
[1764556017792,0.4618,2857.9,2857.3,0.405504]
[1764556018121,0.4618,2857.9,2857.3,1.13109811]
[1764556018326,0.88362708,2857.9,2857.3,1.13109811]
[1764556018489,0.88362708,2857.9,2857.3,4.63089655]
[1764556018689,0.4618,2857.8,2857.3,4.63089655]
[1764556018924,0.4618,2857.8,2857.4,0.03499685]
[1764556019497,0.6848,2858.1,2857.5,0.405504]
[1764556020023,0.4618,2858.1,2857.4,0.405504]
[1764556020328,0.4618,2858.0,2857.7,0.72559411]
[1764556020835,0.23140015,2858.2,2857.7,0.72559411]
[1764556020988,0.002,2858.0,2857.7,0.76058728]
[1764556021821,0.002,2858.0,2857.7,1.57708403]
[1764556022128,0.002,2858.0,2857.7,1.54209086]
[1764556022328,0.002,2858.0,2857.8,3.49919518]
[1764556023695,0.002,2858.0,2857.9,1.336804]
[1764556024099,0.002,2858.0,2857.9,0.876704]
[1764556024297,0.002,2858.0,2857.9,5.35259526]
[1764556024937,0.002,2858.0,2857.9,6.07818937]
[1764556025518,0.002,2858.0,2857.9,6.11318009]
[1764556025826,0.002,2858.0,2857.9,14.59330812]
[1764556026130,0.002,2858.0,2857.9,14.5583174]
[1764556026906,0.002,2859.6,2858.3,0.405504]
[1764556027124,0.002,2859.6,2858.8,1.48209811]
[1764556027335,0.002,2859.6,2859.0,0.405504]
[1764556027705,0.002,2859.6,2859.2,1.60229811]
[1764556028015,11.15304928,2859.4,2859.3,0.876704]
[1764556028208,11.15304928,2859.4,2859.3,2.28539811]
[1764556028530,11.15304928,2859.4,2859.3,1.910804]
[1764556028829,11.15304928,2859.4,2859.3,6.86540021]
[1764556029041,11.15304928,2859.4,2859.3,1.35409811]
[1764556029714,11.15304928,2859.4,2859.3,4.8514576]
[1764556030745,11.15304928,2859.4,2859.3,1.35409811]
[1764556030920,12.10074928,2859.4,2858.9,0.223]
[1764556031120,0.2965,2859.3,2858.9,1.85455687]
[1764556031327,0.7583,2859.3,2859.0,0.405504]
[1764556031539,11.15304928,2859.4,2859.0,0.405504]
[1764556031715,11.15304928,2859.4,2859.3,0.4712]
[1764556031921,11.15304928,2859.4,2859.2,0.405504]
[1764556033107,11.15304928,2859.4,2859.3,3.49735949]
[1764556033809,11.15304928,2859.4,2859.1,0.405504]
[1764556034009,11.15304928,2859.4,2859.2,0.72559411]
[1764556035142,11.15304928,2859.4,2859.2,4.22301569]
[1764556037038,11.15304928,2859.4,2859.2,7.7204975]
[1764556037336,11.15304928,2859.4,2859.2,4.22301569]
[1764556037529,11.15304928,2859.4,2859.3,0.876704]
[1764556037840,11.15304928,2859.4,2859.3,0.405504]
[1764556038220,11.15304928,2859.4,2859.3,0.876704]
[1764556039324,11.15304928,2859.4,2859.3,1.13109811]
[1764556039740,11.15304928,2859.4,2859.3,5.0996576]
[1764556039911,11.15504928,2859.4,2859.3,5.0996576]
[1764556040421,11.15504928,2859.4,2859.3,6.84053838]
[1764556040626,11.15504928,2859.4,2859.3,6.80556479]
[1764556041314,11.15504928,2859.4,2859.3,7.02856479]
[1764556041816,11.15504928,2859.4,2859.3,6.67756479]
[1764556042010,11.15504928,2859.4,2859.3,7.02856479]
[1764556042508,11.15504928,2859.4,2859.3,6.56846479]
[1764556042653,11.64094928,2859.4,2859.3,1.35409811]
[1764556042943,11.64094928,2859.4,2859.3,4.8514576]
[1764556043145,11.15504928,2859.4,2859.3,4.8514576]
[1764556043344,11.15504928,2859.4,2859.3,1.13109811]
[1764556043345,12.06924928,2859.4,2859.3,1.13109811]
[1764556043644,12.06924928,2859.4,2859.3,0.405504]
[1764556043943,11.52840612,2859.4,2859.3,0.405504]
[1764556044653,12.02670612,2859.4,2859.3,0.405504]
[1764556045437,12.02670612,2859.4,2859.3,3.90286349]
[1764556045647,12.02670612,2859.4,2859.3,0.405504]
[1764556046154,12.02670612,2859.4,2859.3,3.90286349]
[1764556046851,12.02670612,2859.4,2859.3,0.405504]
[1764556047923,12.02670612,2859.4,2859.0,0.001]
[1764556048148,0.495,2859.1,2859.0,0.72659411]
[1764556048523,0.9933,2859.1,2859.0,0.72659411]
[1764556049364,0.9933,2859.1,2859.0,4.22432058]
[1764556049538,0.495,2859.1,2859.0,4.22432058]
[1764556050357,11.06760612,2859.4,2859.1,0.72559411]
[1764556050743,0.495,2859.2,2859.0,0.72659411]
[1764556050942,0.4983,2859.3,2859.1,0.405504]
[1764556051243,0.4983,2859.3,2859.1,1.13109811]
[1764556051445,0.495,2859.2,2859.1,1.13109811]
[1764556052129,0.495,2859.2,2859.1,4.62870225]
[1764556054758,11.56590612,2859.4,2859.1,4.62870225]
[1764556056861,0.495,2859.2,2859.1,4.62869529]
[1764556062051,11.06760612,2859.4,2859.1,5.09889529]
[1764556062574,0.495,2859.2,2859.1,4.62869529]
[1764556063079,0.9933,2859.2,2859.0,0.001]
[1764556063273,0.2512,2859.1,2859.0,0.001]
[1764556063475,0.7495,2859.1,2859.0,0.001]
[1764556064478,11.06760612,2859.4,2859.0,1.31969332]
[1764556064679,11.06760612,2859.4,2859.0,0.35099332]
[1764556064878,11.56590612,2859.4,2859.0,0.70199332]
[1764556065185,11.56590612,2859.4,2859.1,3.49760414]
[1764556065551,11.56590612,2859.4,2859.1,4.22319825]
[1764556066369,11.56590612,2859.4,2859.1,0.72559411]
[1764556067390,11.41590612,2859.4,2859.1,4.22311706]
[1764556069482,10.91760612,2859.4,2859.2,0.03497481]
[1764556069786,10.91760612,2859.4,2859.1,4.22311706]
[1764556071889,10.91760612,2859.4,2859.3,0.4702]
[1764556072090,11.41260612,2859.4,2859.1,5.03030064]
[1764556073384,11.90590612,2859.4,2859.1,5.03030064]
[1764556074488,11.41090612,2859.4,2859.1,4.22311706]
[1764556075087,0.4562,2859.2,2859.1,4.22311706]
[1764556075557,0.9495,2859.2,2859.1,4.22311706]
[1764556078073,0.9495,2859.2,2859.1,0.72559411]
[1764556078461,0.4562,2859.2,2859.1,4.22319825]
[1764556079461,0.9495,2859.2,2859.1,0.72559411]
[1764556080884,0.4562,2859.2,2859.1,0.72559411]
[1764556081991,0.4562,2859.2,2859.1,4.22319825]
[1764556082662,11.41090612,2859.4,2859.1,4.22319825]
[1764556083163,10.91760612,2859.4,2859.2,0.03497481]
[1764556083880,10.91760612,2859.4,2859.3,6.94938579]
[1764556084099,10.91760612,2859.4,2859.3,2.66670316]
[1764556084297,11.41090612,2859.4,2859.3,2.18130316]
[1764556084462,11.86710612,2859.4,2859.1,3.4975865]
[1764556084790,0.4914,2859.3,2859.2,0.72559411]
[1764556084986,10.91760612,2859.4,2859.3,0.890904]
[1764556085393,11.86710612,2859.4,2859.2,3.49746447]
[1764556085590,0.3027,2859.3,2859.2,4.62856258]
[1764556086392,10.91760612,2859.4,2859.2,5.11396258]
[1764556086566,10.91760612,2859.4,2859.3,0.4854]
[1764556086763,0.9495,2859.3,2859.0,0.001]
[1764556086976,0.3027,2859.1,2859.0,0.001]
[1764556087536,0.796,2859.1,2859.0,0.001]
[1764556089794,0.03450015,2859.3,2859.0,0.001]
[1764556089966,0.4562,2859.1,2859.0,0.001]
[1764556090361,0.52780015,2859.3,2859.0,0.001]
[1764556090666,0.223,2859.2,2859.0,0.001]
[1764556090868,0.4933,2859.3,2859.0,0.001]
[1764556091079,0.4933,2859.3,2859.0,3.49872647]
[1764556091290,0.4562,2859.1,2859.0,0.001]
[1764556092524,10.91760612,2859.4,2859.0,2.48926704]
[1764556092693,11.41090612,2859.4,2859.1,0.405504]
[1764556092894,10.91760612,2859.4,2859.1,0.405504]
[1764556093097,10.91760612,2859.4,2859.2,3.49748181]
[1764556093499,0.9495,2859.3,2859.0,0.72659411]
[1764556093700,0.4547,2859.1,2859.0,0.001]
[1764556094390,0.948,2859.1,2859.0,0.001]
[1764556095475,4.44560414,2859.1,2859.0,0.001]
[1764556096972,4.48010429,2859.1,2859.0,0.001]
[1764556100706,4.70310429,2859.1,2859.0,0.001]
[1764556101023,5.52316297,2859.1,2859.0,0.001]
[1764556101226,4.70310429,2859.1,2859.0,0.001]
[1764556104135,5.05378425,2859.1,2859.0,0.001]
[1764556104642,8.20070843,2859.1,2858.8,0.001]
[1764556104810,0.84107996,2858.9,2858.8,0.001]
[1764556105015,0.87558011,2858.9,2858.8,0.001]
[1764556105228,1.36818011,2858.9,2858.8,0.001]
[1764556106134,1.01750015,2858.9,2858.8,0.001]
[1764556106708,1.36818011,2858.9,2858.8,0.001]
[1764556108254,4.73834897,2858.9,2858.8,0.001]
[1764556108546,5.9477049,2858.9,2858.8,0.001]
[1764556109343,10.91160612,2858.0,2857.9,3.49905857]
[1764556109744,10.91160612,2858.0,2857.9,4.45955857]
[1764556111714,10.91160612,2858.0,2857.9,0.4782]
[1764556112358,10.91160612,2858.0,2857.9,3.97727274]
[1764556113311,10.91160612,2858.0,2857.9,4.45957274]
[1764556116831,10.91160612,2858.0,2857.9,4.49456346]
[1764556117343,10.91160612,2858.0,2857.9,5.79314871]
[1764556118057,10.91160612,2858.0,2857.9,5.84765271]
[1764556118345,10.91160612,2858.0,2857.9,6.19865271]
[1764556118514,10.91160612,2858.0,2857.9,12.81147631]
[1764556118714,10.91160612,2858.0,2857.9,12.77648559]
[1764556122660,10.91160612,2858.0,2857.9,12.42548559]
[1764556122827,10.91160612,2858.0,2857.9,11.94318559]
[1764556124247,10.91160612,2858.0,2857.9,12.42548559]
[1764556124828,10.91160612,2858.0,2857.9,12.77648559]
[1764556125745,10.91160612,2858.0,2857.9,12.77748559]
[1764556126853,10.91160612,2858.0,2857.9,8.92741285]
[1764556127259,10.91160612,2858.0,2857.9,12.42648559]
[1764556127640,10.91160612,2858.0,2857.9,11.94418559]
[1764556128041,10.91160612,2858.0,2857.9,12.29518559]
[1764556128368,10.91160612,2858.0,2857.9,12.42648559]
[1764556128938,10.91160612,2858.0,2857.9,12.77748559]
[1764556129239,10.91160612,2858.0,2857.9,12.42648559]
[1764556130360,10.91160612,2858.0,2857.9,13.47718351]
[1764556130571,10.91160612,2858.0,2857.9,13.82818351]
[1764556132266,10.91160612,2858.0,2857.9,13.47718351]
[1764556132439,10.91160612,2858.0,2857.9,17.67618351]
[1764556132639,10.91160612,2858.0,2857.9,17.32518351]
[1764556132962,10.91160612,2858.0,2857.9,18.40177762]
[1764556133162,10.91160612,2858.0,2857.9,18.05077762]
[1764556133336,10.91160612,2858.0,2857.9,18.40177762]
[1764556133859,10.91160612,2858.0,2857.9,18.05077762]
[1764556134055,10.91160612,2858.0,2857.9,18.40177762]
[1764556134255,10.91160612,2858.0,2857.9,13.72047762]
[1764556134440,10.91160612,2858.0,2857.9,14.18907762]
[1764556135567,10.91160612,2858.0,2857.9,14.54007762]
[1764556135864,10.91160612,2858.0,2857.9,14.18907762]
[1764556136776,10.91160612,2858.0,2857.9,14.54007762]
[1764556137067,10.91160612,2858.0,2857.9,14.18907762]
[1764556137581,10.91160612,2858.0,2857.9,1.52989792]
[1764556137745,10.91160612,2858.0,2857.9,1.50339792]
[1764556138067,10.91160612,2858.0,2857.9,12.34088837]
[1764556138280,10.91160612,2858.0,2857.9,13.09739237]
[1764556138467,10.91160612,2858.0,2857.9,13.56599237]
[1764556138878,10.91160612,2858.0,2857.9,15.29481035]
[1764556140144,10.91160612,2858.0,2857.9,14.94381035]
[1764556140374,10.91160612,2858.0,2857.9,15.29481035]
[1764556141275,10.91160612,2858.0,2857.9,19.14281035]
[1764556143373,0.002,2858.4,2858.0,1.13109811]
[1764556143570,0.002,2858.4,2858.3,15.32944531]
[1764556144075,0.002,2858.4,2858.3,19.29662838]
[1764556144266,0.002,2858.4,2858.3,12.68380478]
[1764556144777,0.002,2858.4,2858.3,18.96809641]
[1764556145077,0.002,2858.4,2858.3,19.43669641]
[1764556145382,0.002,2858.4,2858.3,22.09497824]
[1764556146752,0.002,2858.4,2858.3,15.48215464]
[1764556146948,0.002,2858.4,2858.3,8.86933104]
[1764556147148,0.002,2858.4,2858.3,12.82387281]
[1764556147354,0.002,2858.4,2858.3,16.67187281]
[1764556148092,0.002,2858.4,2858.3,16.20327281]
[1764556148558,0.002,2858.4,2858.3,16.67187281]
[1764556149281,0.002,2858.4,2858.3,16.20327281]
[1764556149488,0.4855,2858.4,2858.3,17.20076998]
[1764556149776,0.4855,2858.4,2858.3,17.77376998]
[1764556150090,0.002,2858.4,2858.3,17.77376998]
[1764556150983,0.002,2858.4,2858.3,13.92576998]
[1764556151675,0.4855,2858.4,2858.3,13.92576998]
[1764556154193,0.002,2858.4,2858.3,13.92576998]
[1764556154367,0.4855,2858.4,2858.3,13.92576998]
[1764556154787,0.002,2858.4,2858.3,13.92576998]